fUSD/lending_fUSD_20240712
["ID","MTS","AMOUNT","RATE_DAILY","PERIOD"]
[331847970,1720793455113,-500.0,0.00013753,2]
[331847971,1720793455122,-500.0,0.00013753,2]
[331847972,1720793455132,-500.0,0.00013753,2]
[331847973,1720793455141,-500.0,0.00013753,2]
[331847974,1720793455151,-500.0,0.00013753,2]
[331847975,1720793455160,-500.0,0.00013753,2]
[331847976,1720793455169,-500.0,0.00013753,2]
[331847977,1720793455178,-500.0,0.00013753,2]
[331847978,1720793455190,-634.92,0.00013753,2]
[331847979,1720793455199,-500.0,0.00013753,2]
[331847980,1720793455208,-1937.06,0.00013753,2]
[331847981,1720793455217,-500.0,0.00013753,2]
[331847982,1720793455227,-1160.98,0.00013753,2]
[331847983,1720793455236,-500.0,0.00013753,2]
[331847984,1720793455245,-500.0,0.00013753,2]
[331847985,1720793455255,-500.0,0.00013753,2]
[331847986,1720793455264,-500.0,0.00013753,2]
[331847987,1720793455274,-700.24,0.00013753,2]
[331847988,1720793455283,-1131.91,0.00013753,2]
[331847989,1720793455293,-500.0,0.00013753,2]
[331847990,1720793455303,-810.78,0.00013753,2]
[331847991,1720793455312,-1079.48,0.00013753,2]
[331847992,1720793455322,-553.04,0.00013753,2]
[331847993,1720793455332,-985.27,0.00013753,2]
[331847994,1720793455342,-774.56,0.00013753,2]
[331847995,1720793455351,-500.0,0.00013753,2]
[331847996,1720793455361,-500.0,0.00013753,2]
[331847997,1720793455370,-500.0,0.00013753,2]
[331847998,1720793455379,-500.0,0.00013753,2]
[331847999,1720793455390,-500.0,0.00013753,2]
[331848000,1720793455401,-1132.97,0.00013753,2]
[331848001,1720793455412,-500.0,0.00013753,2]
[331848002,1720793455422,-500.0,0.00013753,2]
[331848003,1720793455433,-500.0,0.00013753,2]
[331848004,1720793455443,-500.0,0.00013753,2]
[331848005,1720793455452,-500.0,0.00013753,2]
[331848006,1720793455461,-1316.13,0.00013753,2]
[331848007,1720793455471,-500.0,0.00013753,2]
[331848008,1720793455480,-500.0,0.00013753,2]
[331848009,1720793455490,-970.6,0.00013753,2]
[331848010,1720793455500,-500.0,0.00013753,2]
[331848011,1720793455509,-500.0,0.00013753,2]
[331848012,1720793455519,-500.0,0.00013753,2]
[331848013,1720793455528,-500.0,0.00013753,2]
[331848014,1720793455538,-987.63,0.00013753,2]
[331848015,1720793455547,-500.0,0.00013753,2]
[331848016,1720793455557,-864.5,0.00013753,2]
[331848017,1720793455567,-913.72,0.00013753,2]
[331848018,1720793455576,-500.0,0.00013753,2]
[331848019,1720793455586,-500.0,0.00013753,2]
[331848020,1720793455595,-500.0,0.00013753,2]
[331848021,1720793455605,-500.0,0.00013753,2]
[331848022,1720793455614,-904.96,0.00013753,2]
[331848023,1720793455623,-500.0,0.00013753,2]
[331848024,1720793455633,-500.0,0.00013753,2]
[331848025,1720793455642,-500.0,0.00013753,2]
[331848026,1720793455651,-1137.52,0.00013753,2]
[331848027,1720793455661,-500.0,0.00013753,2]
[331848028,1720793455676,-500.0,0.00013753,2]
[331848029,1720793455687,-500.0,0.00013753,2]
[331848030,1720793455696,-500.0,0.00013753,2]
[331848031,1720793455706,-923.27,0.00013753,2]
[331848032,1720793455718,-540.23,0.00013753,2]
[331848033,1720793455727,-772.48,0.00013753,2]
[331848034,1720793455736,-535.92,0.00013753,2]
[331848035,1720793455747,-1056.99,0.00013753,2]
[331848036,1720793455756,-588.96,0.00013753,2]
[331848037,1720793455766,-500.0,0.00013753,2]
[331848038,1720793455775,-510.73,0.00013753,2]
[331848039,1720793455785,-500.0,0.00013753,2]
[331848040,1720793455794,-555.21,0.00013753,2]
[331848041,1720793455803,-634.19,0.00013753,2]
[331848042,1720793455813,-500.0,0.00013753,2]
[331848043,1720793455822,-566.82,0.00013753,2]
[331848044,1720793455832,-819.65,0.00013753,2]
[331848045,1720793455841,-500.0,0.00013753,2]
[331848046,1720793455851,-1189.26,0.00013753,2]
[331848047,1720793455860,-500.0,0.00013753,2]
[331848048,1720793455869,-500.0,0.00013753,2]
[331848049,1720793455879,-1225.49,0.00013753,2]
[331848050,1720793455888,-500.0,0.00013753,2]
[331848051,1720793455897,-1442.97,0.00013753,2]
[331848052,1720793455906,-1110.33,0.00013753,2]
[331848053,1720793455916,-500.0,0.00013753,2]
[331848054,1720793455925,-1095.74,0.00013753,2]
[331848055,1720793455935,-500.0,0.00013753,2]
[331848056,1720793455944,-500.0,0.00013753,2]
[331848057,1720793455953,-500.0,0.00013753,2]
[331848058,1720793455963,-884.27,0.00013753,2]
[331848059,1720793455972,-722.96,0.00013753,2]
[331848060,1720793455982,-1250.77,0.00013753,2]
[331848061,1720793455992,-500.0,0.00013753,2]
[331848062,1720793456001,-500.0,0.00013753,2]
[331848063,1720793456011,-500.0,0.00013753,2]
[331848064,1720793456021,-500.0,0.00013753,2]
[331848065,1720793456030,-500.0,0.00013753,2]
[331848066,1720793456040,-500.0,0.00013753,2]
[331848067,1720793456050,-1289.52,0.00013753,2]
[331848068,1720793456059,-500.0,0.00013753,2]
[331848069,1720793456068,-1155.37,0.00013753,2]
[331848070,1720793456078,-500.0,0.00013753,2]
[331848071,1720793456087,-548.16,0.00013753,2]
[331848072,1720793456096,-963.48,0.00013753,2]
[331848073,1720793456106,-500.0,0.00013753,2]
[331848074,1720793456115,-809.54,0.00013753,2]
[331848075,1720793456124,-1594.51,0.00013753,2]
[331848076,1720793456133,-500.0,0.00013753,2]
[331848077,1720793456143,-500.0,0.00013753,2]
[331848078,1720793456152,-500.0,0.00013753,2]
[331848079,1720793456161,-477.05878448,0.00013753,2]
[331848080,1720793456171,-500.0,0.00013753,2]
[331848081,1720793456180,-500.0,0.00013753,2]
[331848082,1720793456192,-1444.04,0.00013753,2]
[331848083,1720793456202,-816.99,0.00013753,2]
[331848084,1720793456212,-601.94,0.00013753,2]
[331848085,1720793456221,-500.0,0.00013753,2]
[331848086,1720793456231,-520.99,0.00013753,2]
[331848087,1720793456240,-622.52,0.00013753,2]
[331848088,1720793456250,-835.36,0.00013753,2]
[331848089,1720793456259,-701.18,0.00013753,2]
[331848090,1720793456268,-500.0,0.00013753,2]
[331848091,1720793456278,-500.0,0.00013753,2]
[331848092,1720793456286,-500.0,0.00013753,2]
[331848093,1720793456296,-872.3,0.00013753,2]
[331848094,1720793456305,-873.67,0.00013753,2]
[331848095,1720793456314,-803.99,0.00013753,2]
[331848096,1720793456323,-1039.79,0.00013753,2]
[331848097,1720793456333,-500.0,0.00013753,2]
[331848098,1720793456342,-500.0,0.00013753,2]
[331848099,1720793456352,-1075.41,0.00013753,2]
[331848100,1720793456361,-500.0,0.00013753,2]
[331848101,1720793456370,-1222.82,0.00013753,2]
[331848102,1720793456379,-500.0,0.00013753,2]
[331848103,1720793456389,-500.0,0.00013753,2]
[331848104,1720793456398,-500.0,0.00013753,2]
[331848105,1720793456407,-500.0,0.00013753,2]
[331848106,1720793456417,-898.4,0.00013753,2]
[331848107,1720793456426,-1183.3,0.00013753,2]
[331848108,1720793456438,-1498.04,0.00013753,2]
[331848109,1720793456447,-737.01,0.00013753,2]
[331848110,1720793456457,-700.92,0.00013753,2]
[331848111,1720793456467,-1172.71,0.00013753,2]
[331848112,1720793456476,-500.0,0.00013753,2]
[331848113,1720793456485,-570.6,0.00013753,2]
[331848114,1720793456495,-500.0,0.00013753,2]
[331848115,1720793456504,-500.0,0.00013753,2]
[331848116,1720793456514,-777.42,0.00013753,2]
[331848117,1720793456524,-500.0,0.00013753,2]
[331848118,1720793456534,-500.0,0.00013753,2]
[331848119,1720793456544,-500.0,0.00013753,2]
[331848120,1720793456553,-500.0,0.00013753,2]
[331848121,1720793456563,-571.03,0.00013753,2]
[331848122,1720793456573,-500.0,0.00013753,2]
[331848123,1720793456583,-795.52,0.00013753,2]
[331848124,1720793456593,-500.0,0.00013753,2]
[331848125,1720793456602,-520.52,0.00013753,2]
[331848126,1720793456612,-500.0,0.00013753,2]
[331848127,1720793456622,-567.54,0.00013753,2]
[331848128,1720793456632,-500.0,0.00013753,2]
[331848129,1720793456641,-500.0,0.00013753,2]
[331848130,1720793456650,-500.0,0.00013753,2]
[331848131,1720793456660,-500.0,0.00013753,2]
[331848132,1720793456672,-500.0,0.00013753,2]
[331848133,1720793456683,-1216.81,0.00013753,2]
[331848134,1720793456694,-260.84634172,0.00013753,2]
[331848135,1720793456703,-937.55,0.00013753,2]
[331848136,1720793456714,-500.0,0.00013753,2]
[331848137,1720793456723,-1101.89,0.00013753,2]
[331848138,1720793456733,-564.59,0.00013753,2]
[331848139,1720793456743,-500.0,0.00013753,2]
[331848140,1720793456756,-700.87,0.00013753,2]
[331848141,1720793456767,-500.0,0.00013753,2]
[331848142,1720793456776,-500.0,0.00013753,2]
[331848143,1720793456786,-500.0,0.00013753,2]
[331848144,1720793456795,-500.0,0.00013753,2]
[331848145,1720793456805,-500.0,0.00013753,2]
[331848146,1720793456815,-500.0,0.00013753,2]
[331848147,1720793456825,-500.0,0.00013753,2]
[331848148,1720793456835,-500.0,0.00013753,2]
[331848149,1720793456845,-500.0,0.00013753,2]
[331848150,1720793456855,-500.0,0.00013753,2]
[331848151,1720793456864,-500.0,0.00013753,2]
[331848152,1720793456874,-634.94,0.00013753,2]
[331848153,1720793456883,-626.23,0.00013753,2]
[331848154,1720793456893,-1443.58,0.00013753,2]
[331848155,1720793456902,-760.97,0.00013753,2]
[331848156,1720793456913,-500.0,0.00013753,2]
[331848157,1720793456923,-505.96,0.00013753,2]
[331848158,1720793456936,-500.0,0.00013753,2]
[331848159,1720793456945,-877.94,0.00013753,2]
[331848160,1720793456955,-1264.39,0.00013753,2]
[331848161,1720793456964,-500.0,0.00013753,2]
[331848162,1720793456973,-500.0,0.00013753,2]
[331848163,1720793456983,-500.0,0.00013753,2]
[331848164,1720793456992,-500.0,0.00013753,2]
[331848165,1720793457002,-500.0,0.00013753,2]
[331848166,1720793457011,-500.0,0.00013753,2]
[331848167,1720793457020,-500.0,0.00013753,2]
[331848168,1720793457029,-500.0,0.00013753,2]
[331848169,1720793457039,-1227.65,0.00013753,2]
[331848170,1720793457049,-500.0,0.00013753,2]
[331848171,1720793457059,-500.0,0.00013753,2]
[331848172,1720793457071,-694.29,0.00013753,2]
[331848173,1720793457080,-500.0,0.00013753,2]
[331848174,1720793457090,-1361.77,0.00013753,2]
[331848175,1720793457099,-582.53,0.00013753,2]
[331848176,1720793457109,-500.0,0.00013753,2]
[331848177,1720793457119,-500.0,0.00013753,2]
[331848178,1720793457129,-737.18,0.00013753,2]
[331848179,1720793457139,-500.0,0.00013753,2]
[331848180,1720793457149,-614.16,0.00013753,2]
[331848181,1720793457160,-688.27,0.00013753,2]
[331848182,1720793457170,-394.35099238,0.00013753,2]
[331848183,1720793457179,-616.28,0.00013753,2]
[331848184,1720793457191,-1296.55,0.00013753,2]
[331848185,1720793457200,-500.0,0.00013753,2]
[331848186,1720793457209,-500.0,0.00013753,2]
[331848187,1720793457219,-500.0,0.00013753,2]
[331848188,1720793457229,-500.0,0.00013753,2]
[331848189,1720793457239,-500.0,0.00013753,2]
[331848190,1720793457248,-557.62,0.00013753,2]
[331848191,1720793457259,-617.52,0.00013753,2]
[331848192,1720793457268,-754.18,0.00013753,2]
[331848193,1720793457278,-500.0,0.00013753,2]
[331848194,1720793457288,-500.0,0.00013753,2]
[331848195,1720793457298,-500.0,0.00013753,2]
[331848196,1720793457308,-642.65,0.00013753,2]
[331848197,1720793457318,-500.0,0.00013753,2]
[331848198,1720793457327,-7325.65,0.00013753,2]
[331848199,1720793457337,-500.0,0.00013753,2]
[331848200,1720793457347,-500.0,0.00013753,2]
[331848201,1720793457357,-2284.54,0.00013753,2]
[331848202,1720793457366,-500.0,0.00013753,2]
[331848203,1720793457376,-500.0,0.00013753,2]
[331848204,1720793457385,-1347.25,0.00013753,2]
[331848205,1720793457395,-1170.07,0.00013753,2]
[331848206,1720793457404,-515.48,0.00013753,2]
[331848207,1720793457464,-152.90605664,0.00013763,2]
[331848208,1720793457474,-534.42180325,0.0001378,2]
[331848209,1720793457483,-500.0,0.00013789,2]
[331848210,1720793457493,-275.1503701,0.00013797,2]
[331848211,1720793457502,-9876.0263058,0.00013797,2]
[331848212,1720793457511,-373.5906013,0.00013797,2]
[331848213,1720793457520,-590.359467,0.00013797,2]
[331848214,1720793457530,-550.3007402,0.00013797,2]
[331848215,1720793457540,-500.0,0.00013798,2]
[331848216,1720793457550,-4640.07568384,0.00013799,2]
[331848217,1720793457560,-5931.14804107,0.00013799,2]
[331848218,1720793457569,-500.0,0.00013799,2]
[331848219,1720793457579,-500.0,0.00013799,2]
[331848220,1720793457589,-42110.94972186,0.00013799,2]
[331848221,1720793457598,-42110.94972182,0.00013799,2]
[331848222,1720793457608,-588.0,0.000138,2]
[331848223,1720793457618,-187061.9316131,0.000138,2]
[331848224,1720793457652,-1689.57717869,0.000138,2]
[331848225,1720793457664,-5347.65942936,0.000138,2]
[331848226,1720793457678,-358.54738649,0.000138,2]
[331848227,1720793457694,-2195.05789206,0.000138,2]
[331848228,1720793457706,-1559.52438145,0.000138,2]
[331848229,1720793457721,-1751.24046343,0.000138,2]
[331848230,1720793457733,-480.16982061,0.000138,2]
[331848231,1720793457746,-812.8056816,0.000138,2]
[331848232,1720793457759,-962.4578,0.000138,2]
[331848233,1720793457770,-2762.05,0.000138,2]
[331848234,1720793457781,-800.25694675,0.000138,2]
[331848235,1720793457799,-513.39332562,0.000138,2]
[331848236,1720793457810,-521.4739999,0.000138,2]
[331848237,1720793457821,-41426.61858732,0.000138,2]
[331848238,1720793457833,-422.24066894,0.000138,2]
[331848239,1720793457847,-488.93598669,0.000138,2]
[331848240,1720793457861,-5781.0,0.000138,2]
[331848241,1720793457874,-10438.10431284,0.000138,2]
[331848242,1720793457886,-463.26695091,0.000138,2]
[331848243,1720793457897,-8571.89705668,0.000138,2]
[331848244,1720793457908,-815.52431471,0.000138,2]
[331848245,1720793457920,-327617.73179785,0.000138,2]
[331848246,1720793457930,-390.9,0.000138,2]
[331848247,1720793457942,-370.28160775,0.00013802,2]
[331848248,1720793457952,-3656.24457549,0.00013805,2]
[331848249,1720793457961,-500.0,0.00013807,2]
[331848250,1720793457970,-307.89,0.00013807,2]
[331848251,1720793457979,-500.0,0.00013807,2]
[331848252,1720793457988,-500.0,0.00013807,2]
[331848253,1720793457998,-785.56,0.00013807,2]
[331848254,1720793458007,-2394.96,0.00013807,2]
[331848255,1720793458016,-614.72,0.00013807,2]
[331848256,1720793458025,-650.16,0.00013807,2]
[331848257,1720793458036,-195.55922007,0.00013807,2]
[331848258,1720793458047,-500.27,0.00013807,2]
[331848259,1720793458057,-500.0,0.00013807,2]
[331848260,1720793458066,-1048.37,0.00013807,2]
[331848261,1720793458076,-500.0,0.00013807,2]
[331848262,1720793458086,-581.63,0.00013807,2]
[331848263,1720793458096,-1353.66,0.00013807,2]
[331848264,1720793458105,-550.17,0.00013807,2]
[331848265,1720793458115,-592.17,0.00013807,2]
[331848266,1720793458126,-1431.99,0.00013807,2]
[331848267,1720793458138,-152.63776031,0.00013807,2]
[331848268,1720793458149,-500.0,0.00013807,2]
[331848269,1720793458159,-178.73029776,0.00013807,2]
[331848270,1720793458169,-500.0,0.00013807,2]
[331848271,1720793458179,-300.0,0.00013807,2]
[331848272,1720793458189,-300.0,0.00013807,2]
[331848273,1720793458199,-500.0,0.00013808,2]
[331848274,1720793458208,-500.0,0.00013808,2]
[331848275,1720793458218,-500.0,0.00013808,2]
[331848276,1720793458228,-500.0,0.00013808,2]
[331848277,1720793458239,-502.47,0.00013808,2]
[331848278,1720793458249,-500.0,0.00013808,2]
[331848279,1720793458258,-718.04,0.00013808,2]
[331848280,1720793458270,-500.0,0.00013808,2]
[331848281,1720793458279,-292.03583593,0.00013808,2]
[331848282,1720793458289,-500.0,0.00013808,2]
[331848283,1720793458298,-500.0,0.00013808,2]
[331848284,1720793458307,-500.0,0.00013808,2]
[331848285,1720793458317,-564.28,0.00013808,2]
[331848286,1720793458327,-500.0,0.00013808,2]
[331848287,1720793458336,-593.47,0.00013808,2]
[331848288,1720793458345,-463.9,0.00013808,2]
[331848289,1720793458355,-500.0,0.00013808,2]
[331848290,1720793458364,-500.0,0.00013808,2]
[331848291,1720793458373,-506.74,0.00013808,2]
[331848292,1720793458382,-500.0,0.00013808,2]
[331848293,1720793458391,-500.0,0.00013808,2]
[331848294,1720793458400,-500.0,0.00013808,2]
[331848295,1720793458410,-500.0,0.00013808,2]
[331848296,1720793458420,-863.45,0.00013808,2]
[331848297,1720793458429,-500.0,0.00013808,2]
[331848298,1720793458440,-500.0,0.00013808,2]
[331848299,1720793458450,-523.05,0.00013808,2]
[331848300,1720793458459,-500.0,0.00013808,2]
[331848301,1720793458469,-640.08,0.00013808,2]
[331848302,1720793458478,-500.0,0.00013808,2]
[331848303,1720793458488,-500.0,0.00013808,2]
[331848304,1720793458497,-500.0,0.00013808,2]
[331848305,1720793458508,-500.0,0.00013808,2]
[331848306,1720793458517,-500.0,0.00013808,2]
[331848307,1720793458526,-500.0,0.00013808,2]
[331848308,1720793458536,-500.0,0.00013808,2]
[331848309,1720793458545,-500.0,0.00013808,2]
[331848310,1720793458555,-500.0,0.00013808,2]
[331848311,1720793458564,-542.25,0.00013808,2]
[331848312,1720793458574,-517.33,0.00013808,2]
[331848313,1720793458583,-500.0,0.00013808,2]
[331848314,1720793458593,-500.0,0.00013808,2]
[331848315,1720793458602,-500.0,0.00013808,2]
[331848316,1720793458611,-638.96,0.00013808,2]
[331848317,1720793458620,-520.46,0.00013808,2]
[331848318,1720793458630,-500.0,0.00013808,2]
[331848319,1720793458639,-869.21,0.00013808,2]
[331848320,1720793458650,-500.0,0.00013808,2]
[331848321,1720793458659,-500.0,0.00013808,2]
[331848322,1720793458669,-500.0,0.00013808,2]
[331848323,1720793458682,-500.0,0.00013808,2]
[331848324,1720793458693,-500.0,0.00013808,2]
[331848325,1720793458703,-500.0,0.00013808,2]
[331848326,1720793458712,-659.64,0.00013808,2]
[331848327,1720793458722,-500.0,0.00013808,2]
[331848328,1720793458731,-742.1,0.00013808,2]
[331848329,1720793458740,-638.51,0.00013808,2]
[331848330,1720793458752,-500.0,0.00013808,2]
[331848331,1720793458761,-500.0,0.00013808,2]
[331848332,1720793458771,-500.0,0.00013808,2]
[331848333,1720793458781,-500.0,0.00013808,2]
[331848334,1720793458790,-500.0,0.00013808,2]
[331848335,1720793458800,-500.0,0.00013808,2]
[331848336,1720793458809,-500.0,0.00013808,2]
[331848337,1720793458818,-500.0,0.00013808,2]
[331848338,1720793458827,-500.0,0.00013808,2]
[331848339,1720793458837,-352.42068999,0.00013808,2]
[331848340,1720793458846,-500.0,0.00013808,2]
[331848341,1720793458856,-500.0,0.00013808,2]
[331848342,1720793458865,-500.0,0.00013808,2]
[331848343,1720793458875,-500.0,0.00013808,2]
[331848344,1720793458884,-404.28607869,0.00013808,2]
[331848345,1720793458894,-500.0,0.00013808,2]
[331848346,1720793458903,-500.0,0.00013808,2]
[331848347,1720793458912,-500.0,0.00013808,2]
[331848348,1720793458922,-500.0,0.00013808,2]
[331848349,1720793458932,-500.0,0.00013808,2]
[331848350,1720793458943,-500.0,0.00013808,2]
[331848351,1720793458953,-500.0,0.00013808,2]
[331848352,1720793458962,-500.0,0.00013808,2]
[331848353,1720793458972,-548.39081359,0.00013808,2]
[331848354,1720793458982,-500.0,0.00013808,2]
[331848355,1720793458991,-517.69,0.00013808,2]
[331848356,1720793459001,-500.0,0.00013808,2]
[331848357,1720793459010,-557.47926611,0.00013808,2]
[331848358,1720793459019,-524.62,0.00013808,2]
[331848359,1720793459028,-620.56,0.00013808,2]
[331848360,1720793459037,-500.0,0.00013808,2]
[331848361,1720793459047,-500.0,0.00013808,2]
[331848362,1720793459056,-500.0,0.00013808,2]
[331848363,1720793459066,-500.0,0.00013808,2]
[331848364,1720793459075,-500.0,0.00013808,2]
[331848365,1720793459085,-505.84,0.00013808,2]
[331848366,1720793459094,-500.0,0.00013808,2]
[331848367,1720793459104,-500.19,0.00013808,2]
[331848368,1720793459114,-500.0,0.00013808,2]
[331848369,1720793459123,-500.0,0.00013808,2]
[331848370,1720793459132,-639.69,0.00013808,2]
[331848371,1720793459142,-500.0,0.00013808,2]
[331848372,1720793459151,-620.27808506,0.00013808,2]
[331848373,1720793459162,-500.0,0.00013808,2]
[331848374,1720793459171,-500.0,0.00013808,2]
[331848375,1720793459181,-500.0,0.00013808,2]
[331848376,1720793459192,-500.0,0.00013808,2]
[331848377,1720793459201,-500.0,0.00013808,2]
[331848378,1720793459210,-500.0,0.00013808,2]
[331848379,1720793459219,-500.0,0.00013808,2]
[331848380,1720793459229,-500.0,0.00013808,2]
[331848381,1720793459239,-500.0,0.00013808,2]
[331848382,1720793459248,-500.0,0.00013808,2]
[331848383,1720793459261,-500.0,0.00013808,2]
[331848384,1720793459270,-500.0,0.00013808,2]
[331848385,1720793459280,-181.94,0.00013808,2]
[331848386,1720793459289,-500.0,0.00013808,2]
[331848387,1720793459299,-215.49002507,0.00013808,2]
[331848388,1720793459308,-500.0,0.00013808,2]
[331848389,1720793459317,-500.0,0.00013808,2]
[331848390,1720793459327,-572.43,0.00013808,2]
[331848391,1720793459336,-526.07846649,0.00013808,2]
[331848392,1720793459345,-500.0,0.00013808,2]
[331848393,1720793459355,-500.0,0.00013808,2]
[331848394,1720793459364,-500.0,0.00013808,2]
[331848395,1720793459373,-500.0,0.00013808,2]
[331848396,1720793459383,-585.29,0.00013808,2]
[331848397,1720793459392,-588.59,0.00013808,2]
[331848398,1720793459401,-500.0,0.00013808,2]
[331848399,1720793459411,-500.0,0.00013808,2]
[331848400,1720793459420,-753.27,0.00013808,2]
[331848401,1720793459430,-500.0,0.00013808,2]
[331848402,1720793459440,-512.35,0.00013808,2]
[331848403,1720793459450,-500.0,0.00013808,2]
[331848404,1720793459459,-500.0,0.00013808,2]
[331848405,1720793459469,-325.43427173,0.00013808,2]
[331848406,1720793459480,-572.13,0.00013808,2]
[331848407,1720793459490,-500.0,0.00013808,2]
[331848408,1720793459500,-500.0,0.00013808,2]
[331848409,1720793459509,-500.0,0.00013808,2]
[331848410,1720793459519,-500.0,0.00013808,2]
[331848411,1720793459529,-853.09,0.00013808,2]
[331848412,1720793459539,-500.0,0.00013808,2]
[331848413,1720793459549,-500.0,0.00013808,2]
[331848414,1720793459559,-500.0,0.00013808,2]
[331848415,1720793459569,-501.42,0.00013808,2]
[331848416,1720793459579,-500.0,0.00013808,2]
[331848417,1720793459589,-613.54,0.00013808,2]
[331848418,1720793459600,-500.0,0.00013808,2]
[331848419,1720793459610,-500.0,0.00013808,2]
[331848420,1720793459620,-500.0,0.00013808,2]
[331848421,1720793459630,-1062.15,0.00013808,2]
[331848422,1720793459639,-500.0,0.00013808,2]
[331848423,1720793459649,-500.0,0.00013808,2]
[331848424,1720793459658,-500.0,0.00013808,2]
[331848425,1720793459668,-1061.26,0.00013808,2]
[331848426,1720793459682,-587.45,0.00013808,2]
[331848427,1720793459694,-672.15,0.00013808,2]
[331848428,1720793459704,-500.0,0.00013808,2]
[331848429,1720793459715,-500.0,0.00013808,2]
[331848430,1720793459725,-899.54,0.00013808,2]
[331848431,1720793459734,-820.61,0.00013808,2]
[331848432,1720793459744,-912.13,0.00013808,2]
[331848433,1720793459755,-352.97133992,0.00013808,2]
[331848434,1720793459765,-500.0,0.00013808,2]
[331848435,1720793459775,-713.2,0.00013808,2]
[331848436,1720793459784,-723.76,0.00013808,2]
[331848437,1720793459794,-500.0,0.00013808,2]
[331848438,1720793459803,-500.0,0.00013808,2]
[331848439,1720793459813,-500.0,0.00013808,2]
[331848440,1720793459822,-500.0,0.00013808,2]
[331848441,1720793459832,-500.0,0.00013808,2]
[331848442,1720793459842,-500.0,0.00013808,2]
[331848443,1720793459852,-512.45,0.00013808,2]
[331848444,1720793459861,-607.34,0.00013808,2]
[331848445,1720793459871,-500.0,0.00013808,2]
[331848446,1720793459881,-500.0,0.00013808,2]
[331848447,1720793459890,-500.0,0.00013808,2]
[331848448,1720793459900,-500.0,0.00013808,2]
[331848449,1720793459910,-420.48856283,0.00013808,2]
[331848450,1720793460406,-79.51143717,0.00013808,2]
[331848451,1720793460415,-500.0,0.00013808,2]
[331848452,1720793460426,-45.1826962,0.00013808,2]
[331848453,1720793460439,-454.8173038,0.00013808,2]
[331848454,1720793460450,-500.0,0.00013808,2]
[331848455,1720793460459,-700.37,0.00013808,2]
[331848456,1720793460469,-500.0,0.00013808,2]
[331848457,1720793460478,-623.5,0.00013808,2]
[331848458,1720793460488,-500.0,0.00013808,2]
[331848459,1720793460497,-621.57,0.00013808,2]
[331848460,1720793460507,-500.0,0.00013808,2]
[331848461,1720793460516,-500.0,0.00013808,2]
[331848462,1720793460526,-500.0,0.00013808,2]
[331848463,1720793460536,-500.0,0.00013808,2]
[331848464,1720793460546,-500.0,0.00013808,2]
[331848465,1720793460555,-500.0,0.00013808,2]
[331848466,1720793460565,-500.0,0.00013808,2]
[331848467,1720793460575,-547.37,0.00013808,2]
[331848468,1720793460585,-500.0,0.00013808,2]
[331848469,1720793460595,-919.09,0.00013808,2]